Workbook

Sheet ورقة1
A3: Description | B3: الصنف | C3: Delivered | D3: Net Price | E3: SUB TOTAL | F3: GOO
A4: CLNR AIR DRY FARR 7695-000 | B4: أجزاء ولوازم مضخة تبريد | C4: 3 | D4: 191.86 | E4: =C4*D4 -> 575.58 | F4: USA
A5: VLV 6 ELK 2956E-00-00-91 N/ | B5: أجزاء و لوازم صمامات | C5: 3 | D5: 4405.69 | E5: =C5*D5 -> 13217.07 | F5: USA
A6: GA KYS FRT AIR PRESS STDIM | B6: حلقات وجازقيتات موانع تسرب | C6: 6 | D6: 99.58 | E6: 597.48 | F6: USA
A7: GA KYS RR AIR PRESS STD/ME | B7: حلقات وجازقيتات موانع تسرب | C7: 5 | D7: 99.58 | E7: 497.9 | F7: USA
A8: SW FLOW ACT FOAM 2 TYPE WE | B8: أجزاء ولوازم مفاتيح تحكم | C8: 2 | D8: 225.05 | E8: 450.1 | F8: USA
A9: SW FLOW ACT FOAM 2 TYPE WF | B9: أجزاء ولوازم مفاتيح تحكم | C9: 1 | D9: 225.05 | E9: 225.05 | F9: USA
A10: LT .5 DIA BLU .25 FLAT TOP | B10: لمبات انارة ولوازمها للسيارات | C10: 12 | D10: 5.49 | E10: 65.88 | F10: USA
A11: H/K 2.0" X 8' HIGH PRESS | B11: اجزاء ولوازم مركبات أطفاء | C11: 3 | D11: 301.79 | E11: 905.37 | F11: USA
A12: KIT SEAL METERING VALVE LR | B12: حلقات قفل وتختيم | C12: 8 | D12: 136.79 | E12: 1094.32 | F12: USA
A13: BELT FAN CUMMINS | B13: سيور | C13: 3 | D13: 86.03 | E13: 258.09 | F13: USA
A14: 0-RING FOR BASE MON ELK | B14: حلقات وجازقيتات موانع تسرب | C14: 8 | D14: 4.47 | E14: 35.76 | F14: USA
A15: LUMENX 9-DIODE LT RND LED | B15: لمبات انارة ولوازمها للسيارات | C15: 4 | D15: 26.44 | E15: 105.76 | F15: USA
A16: HARN ADPTR FOR LUMENX 9-DI | B16: اجزاء ولوازم مركبات أطفاء | C16: 4 | D16: 6.59 | E16: 26.36 | F16: USA
A17: LT 4" WHITE LED GRMT MNT | B17: لمبات انارة ولوازمها للسيارات | C17: 1 | D17: 39.69 | E17: 39.69 | F17: USA
A18: SEALKIT, PISTON. FOR 33123 | B18: حلقات قفل وتختيم | C18: 1 | D18: 68.37 | E18: 68.37 | F18: USA
A19: VLV 6 BFLY MANUAL KEYSTONE | B19: أجزاء و لوازم صمامات | C19: 1 | D19: 314.42 | E19: 314.42 | F19: China
A20: VLV 6 BFLY MANUAL KEYSTONE | B20: أجزاء و لوازم صمامات | C20: 2 | D20: 314.42 | E20: 628.84 | F20: China
A21: KIT REPAIR METR VLV SMALL | B21: أجزاء و لوازم صمامات | C21: 8 | D21: 72.31 | E21: 578.48 | F21: USA
A22: KIT SEAL 2.5 PRESSURE VLV | B22: أجزاء و لوازم صمامات | C22: 2 | D22: 297.56 | E22: 595.12 | F22: USA
A23: WIPER BLADE KIT P5 241N 3 | B23: مساحات لزجاج السيارة | C23: 4 | D23: 38.58 | E23: 154.32 | F23: USA
A24: VLV PHEUM CNTRL DIRECTIONA | B24: أجزاء و لوازم صمامات | C24: 2 | D24: 347.97 | E24: 695.94 | F24: USA
A25: CLNR AIR DRY | B25: أجزاء ولوازم مضخة تبريد | C25: 2 | D25: 198.58 | E25: 397.16 | F25: USA
A26: PAD UHMW CRADLE SIDE HP95M | B26: اجزاء ولوازم مركبات أطفاء | C26: 3 | D26: 61.76 | E26: 185.28 | F26: USA
A27: RECPT AUTO EJCT SPR 20/125 | B27: اجزاء ولوازم مركبات أطفاء | C27: 2 | D27: 203.15 | E27: 406.3 | F27: USA
A28: GA 4.5 PRESS 30-0-600 E-1 | B28: حلقات وجازقيتات موانع تسرب | C28: 2 | D28: 102.84 | E28: 205.68 | F28: USA
A29: WIPER ARM ASSY PANTO | B29: مساحات لزجاج السيارة | C29: 1 | D29: 170.99 | E29: 170.99 | F29: USA
A30: BRKT MTD TRUCKLT DECKLT | B30: اجزاء ولوازم مركبات أطفاء | C30: 6 | D30: 32.23 | E30: 193.38 | F30: USA
A31: SW PROX SPST NC 0.5IN CHER | B31: أجزاء ولوازم مفاتيح تحكم | C31: 6 | D31: 6.59 | E31: 39.54 | F31: USA
A32: ACT MAGNETIC CHERRY | B32: اجزاء ولوازم مركبات أطفاء | C32: 6 | D32: 5.49 | E32: 32.94 | F32: USA
A33: STARTER CUMMINS | B33: اجزاء ولوازم مركبات أطفاء | C33: 1 | D33: 524.75 | E33: 524.75 | F33: USA
A34: ALT 320A LEECE/N INT RECT/ | B34: اجزاء ولوازم مركبات أطفاء | C34: 1 | D34: 1675 | E34: 1675 | F34: USA
A35: AIR COMP CUM REMAN | B35: أجزاء ولوازم مضخة تبريد | C35: 1 | D35: 1475.71 | E35: 1475.71 | F35: USA
A36: GSKT AIR COMP CUM | B36: حلقات وجازقيتات موانع تسرب | C36: 3 | D36: 7.23 | E36: 21.69 | F36: USA
A37: QHD OIL SEAL | B37: حلقات قفل وتختيم | C37: 2 | D37: 47.11 | E37: 94.22 | F37: USA
A38: Li TRKLT 80395 RECT | B38: اجزاء ولوازم مركبات أطفاء | C38: 2 | D38: 20.93 | E38: 41.86 | F38: USA
A39: KIT 3.0 AKR REPAIR | B39: اطقم اصلاح | C39: 12 | D39: 115.56 | E39: 1386.72 | F39: USA
A40: DRYER AIR B-W AD-9 12V W/H | B40: أجزاء ولوازم مضخة تبريد | C40: 1 | D40: 498.68 | E40: 498.68 | F40: USA
A41: WIPER ARM ASSY PANTO | B41: مساحات لزجاج السيارة | C41: 4 | D41: 170.99 | E41: 683.96 | F41: USA
A42: GSKT 4IN STYLE 741 743 VIC | B42: حلقات وجازقيتات موانع تسرب | C42: 6 | D42: 27.78 | E42: 166.68 | F42: USA
A43: VLV 2.5 BDY STYLE-8825 AKR | B43: أجزاء و لوازم صمامات | C43: 6 | D43: 165.62 | E43: 993.72 | F43: USA
A44: CAP 3.0 NST ROCKER LUG CHR | B44: اجزاء ولوازم مركبات أطفاء | C44: 1 | D44: 112.51 | E44: 112.51 | F44: USA
A45: LT WHE 600 HALO | B45: لمبات انارة ولوازمها للسيارات | C45: 2 | D45: 52.41 | E45: 104.82 | F45: USA
A46: LT WHE 600 HALO | B46: لمبات انارة ولوازمها للسيارات | C46: 1 | D46: 36.03 | E46: 36.03 | F46: USA
E47: 0
E48: 0
E49: 0
E50: 0
E51: 0
E52: 0
E53: 0
E54: 0
E55: 0
E56: 0
E57: 0
E58: 0
E59: 0
E60: 0
E61: 0
E62: 0
E63: 0
E64: 0
E65: 0
E66: 0
E67: 0
E68: 0
E69: =C69*D69 -> 0
E70: 0
E71: 0
E72: 0
E73: 0
E74: 0
E75: 0
E76: 0
E77: 0
E78: 0
E79: 0
E80: 0
E81: 0
E123: =SUM(C4:C121) -> 154 | F123: =SUM(E4:E122) -> 30577.52
E124: =SUM(E127:E142) -> 4242 | F124: =SUM(F127:F142) -> 86
A126: وصف البضائع | B126: رمز التعرفه | C126: رقم اللون | D126: بلد المنشأ | E126: الرمز | F126: كمية الفاتورة | G126: قيمة الصنف
A127: اجزاء ولوازم مركبات أطفاء | B127: 870899000000 | C127: =ColorIndex(A127) -> 2 | D127: امريكا | E127: 410 | F127: =SUMPRODUCT(--(ColorIndex(C4:C121)=2)*C4:C121) -> 35 | G127: =SUMPRODUCT(--(ColorIndex(E4:E121)=2)*E4:E121) -> 5305.1
A128: أجزاء مساعدات هيدروليك لمركبات الأطفاء | B128: 870880009999 | C128: =ColorIndex(B128) -> 3 | D128: امريكا | E128: 410 | F128: =SUMPRODUCT(--(ColorIndex(C4:C121)=3)*C4:C121) -> 12 | G128: =SUMPRODUCT(--(ColorIndex(E4:E121)=3)*E4:E121) -> 1386.72
A129: بطائن فرامل لمركبات الأطفاء | B129: 870830000003 | C129: 4 | D129: الصين | E129: 142 | F129: =SUMPRODUCT(--(ColorIndex(C4:C121)=4)*C4:C121) -> 9 | G129: =SUMPRODUCT(--(ColorIndex(E4:E121)=4)*E4:E121) -> 714.69
A130: أجزاء ولوازم مضخة تبريد | B130: 841391000000 | C130: 5 | D130: امريكا | E130: 410 | F130: =SUMPRODUCT(--(ColorIndex(C4:C121)=5)*C4:C121) -> 0 | G130: =SUMPRODUCT(--(ColorIndex(E4:E121)=5)*E4:E121) -> 0
A131: خزان زيت الفرامل لمركبات الأطفاء | B131: 870830000004 | C131: 6 | D131: امريكا | E131: 410 | F131: =SUMPRODUCT(--(ColorIndex(C4:C121)=6)*C4:C121) -> 30 | G131: =SUMPRODUCT(--(ColorIndex(E4:E121)=6)*E4:E121) -> 1525.19
A132: طقم مكابح فرامل لمركبات الأطفاء | B132: 870830000001 | C132: 7 | D132: امريكا | E132: 410 | F132: =SUMPRODUCT(--(ColorIndex(C4:C121)=7)*C4:C121) -> 0 | G132: =SUMPRODUCT(--(ColorIndex(E4:E121)=7)*E4:E121) -> 0
A133: أجزاء و لوازم صمامات | B133: 848190000000 | C133: 8 | D133: امريكا | E133: 410 | F133: =SUMPRODUCT(--(ColorIndex(C4:C121)=8)*C4:C121) -> 0 | G133: =SUMPRODUCT(--(ColorIndex(E4:E121)=8)*E4:E121) -> 0
A134: حلقات وجازقيتات موانع تسرب | B134: 848410000000 | C134: 9 | D134: امريكا | E134: 410 | F134: =SUMPRODUCT(--(ColorIndex(C4:C121)=9)*C4:C121) -> 0 | G134: =SUMPRODUCT(--(ColorIndex(E4:E121)=9)*E4:E121) -> 0
A135: حلقات قفل وتختيم | B135: 392690400000 | C135: 10 | D135: امريكا | E135: 410 | F135: =SUMPRODUCT(--(ColorIndex(C4:C121)=10)*C4:C121) -> 0 | G135: =SUMPRODUCT(--(ColorIndex(E4:E121)=10)*E4:E121) -> 0
A136: مرشحات (فلاتر) | B136: 842129900000 | C136: =ColorIndex(B136) -> 11 | D136: امريكا | E136: 410 | F136: =SUMPRODUCT(--(ColorIndex(C4:C121)=11)*C4:C121) -> 0 | G136: =SUMPRODUCT(--(ColorIndex(E4:E121)=11)*E4:E121) -> 0
A137: اطقم اصلاح | B137: 820590100000 | C137: =ColorIndex(B137) -> 12 | D137: امريكا | E137: 410 | F137: =SUMPRODUCT(--(ColorIndex(C4:C121)=12)*C4:C121) -> 0 | G137: =SUMPRODUCT(--(ColorIndex(E4:E121)=12)*E4:E121) -> 0
A138: أجزاء و لوازم مضخة | B138: 841391000000 | C138: 13 | F138: =SUMPRODUCT(--(ColorIndex(C4:C121)=13)*C4:C121) -> 0 | G138: =SUMPRODUCT(--(ColorIndex(E4:E121)=13)*E4:E121) -> 0
A139: أجزاء مدحرجات (بيرنجات) | B139: 848320000000 | C139: 14 | F139: =SUMPRODUCT(--(ColorIndex(C4:C121)=14)*C4:C121) -> 0 | G139: =SUMPRODUCT(--(ColorIndex(E4:E121)=14)*E4:E121) -> 0
A140: سيور | B140: 401039000002 | C140: 15 | F140: =SUMPRODUCT(--(ColorIndex(C4:C121)=15)*C4:C121) -> 0 | G140: =SUMPRODUCT(--(ColorIndex(E4:E121)=15)*E4:E121) -> 0
A141: اهواز من مطاط | B141: 400932900001 | C141: 16 | F141: =SUMPRODUCT(--(ColorIndex(C4:C121)=16)*C4:C121) -> 0 | G141: =SUMPRODUCT(--(ColorIndex(E4:E121)=16)*E4:E121) -> 0
A142: أجزاء عمود الشفت | B142: 841290000000 | C142: 17 | F142: =SUMPRODUCT(--(ColorIndex(C4:C121)=17)*C4:C121) -> 0 | G142: =SUMPRODUCT(--(ColorIndex(E4:E121)=17)*E4:E121) -> 0
A143: اجزاء وحدة تحكم بالسرعة | B143: 853710009999 | C143: 18 | F143: =SUMPRODUCT(--(ColorIndex(C4:C121)=18)*C4:C121) -> 0 | G143: =SUMPRODUCT(--(ColorIndex(E4:E121)=18)*E4:E121) -> 0
A144: أجزاء ولوازم مقاييس | B144: 902590000000 | C144: 19 | F144: =SUMPRODUCT(--(ColorIndex(C4:C121)=19)*C4:C121) -> 0 | G144: =SUMPRODUCT(--(ColorIndex(E4:E121)=19)*E4:E121) -> 0
A145: مرابط وطرفيات توصيل للكيابل | B145: 853890000000 | C145: 20 | F145: =SUMPRODUCT(--(ColorIndex(C4:C121)=20)*C4:C121) -> 0 | G145: =SUMPRODUCT(--(ColorIndex(E4:E121)=20)*E4:E121) -> 0
A146: بكرات للاهواز | B146: 732690990000 | C146: 21 | F146: =SUMPRODUCT(--(ColorIndex(C4:C121)=21)*C4:C121) -> 0 | G146: =SUMPRODUCT(--(ColorIndex(E4:E121)=21)*E4:E121) -> 0
A147: واشرات و براغي وصواميل | B147: 731822000002 | C147: =ColorIndex(B147) -> 22 | F147: =SUMPRODUCT(--(ColorIndex(C4:C121)=22)*C4:C121) -> 0 | G147: =SUMPRODUCT(--(ColorIndex(E4:E121)=22)*E4:E121) -> 0
A148: لمبات انارة ولوازمها للسيارات | B148: 851220000002 | C148: 23 | F148: =SUMPRODUCT(--(ColorIndex(C4:C121)=23)*C4:C121) -> 7 | G148: =SUMPRODUCT(--(ColorIndex(E4:E121)=23)*E4:E121) -> 2947.13
A149: مرايات للسياره | B149: 700992000000 | C149: 24 | F149: =SUMPRODUCT(--(ColorIndex(C4:C121)=24)*C4:C121) -> 9 | G149: =SUMPRODUCT(--(ColorIndex(E4:E121)=24)*E4:E121) -> 1009.27
A150: زجاج للسيارات | B150: 700711000000 | C150: 25 | F150: =SUMPRODUCT(--(ColorIndex(C4:C121)=25)*C4:C121) -> 0 | G150: =SUMPRODUCT(--(ColorIndex(E4:E121)=25)*E4:E121) -> 0
A151: مساحات لزجاج السيارة | B151: 851240000001 | C151: 26 | F151: =SUMPRODUCT(--(ColorIndex(C4:C121)=26)*C4:C121) -> 0 | G151: =SUMPRODUCT(--(ColorIndex(E4:E121)=26)*E4:E121) -> 0
A152: بخاخات مياه ولوازمها | B152: 842489000000 | C152: 27 | F152: =SUMPRODUCT(--(ColorIndex(C4:C121)=27)*C4:C121) -> 0 | G152: =SUMPRODUCT(--(ColorIndex(E4:E121)=27)*E4:E121) -> 0
A153: واشرات | B153: 731822000002 | C153: 28 | F153: =SUMPRODUCT(--(ColorIndex(C4:C121)=28)*C4:C121) -> 0 | G153: =SUMPRODUCT(--(ColorIndex(E4:E121)=28)*E4:E121) -> 0
A154: اجزاء وحدة تنبيه | B154: 851290000000 | C154: 29 | F154: =SUMPRODUCT(--(ColorIndex(C4:C121)=29)*C4:C121) -> 0 | G154: =SUMPRODUCT(--(ColorIndex(E4:E121)=29)*E4:E121) -> 0
A155: اجزاء سلندر راس | B155: 840999000002 | C155: 30 | F155: =SUMPRODUCT(--(ColorIndex(C4:C121)=30)*C4:C121) -> 0 | G155: =SUMPRODUCT(--(ColorIndex(E4:E121)=30)*E4:E121) -> 0
A156: شريط لاصق من لدائن | B156: 391990009999 | C156: 31 | F156: =SUMPRODUCT(--(ColorIndex(C4:C121)=31)*C4:C121) -> 0 | G156: =SUMPRODUCT(--(ColorIndex(E4:E121)=31)*E4:E121) -> 0
A157: لوازم انابيب | B157: 730722000000 | C157: 32 | F157: =SUMPRODUCT(--(ColorIndex(C4:C121)=32)*C4:C121) -> 0 | G157: =SUMPRODUCT(--(ColorIndex(E4:E121)=32)*E4:E121) -> 0
A158: انظمة تعليق هوائية | B158: 870880000003 | C158: 33 | F158: =SUMPRODUCT(--(ColorIndex(C4:C121)=33)*C4:C121) -> 0 | G158: =SUMPRODUCT(--(ColorIndex(E4:E121)=33)*E4:E121) -> 0
A159: محرك (موتور) | B159: 850151000000 | C159: 34 | F159: =SUMPRODUCT(--(ColorIndex(C4:C121)=34)*C4:C121) -> 0 | G159: =SUMPRODUCT(--(ColorIndex(E4:E121)=34)*E4:E121) -> 0
A160: أجزاء ولوازم مفاتيح تحكم | B160: 853890000000 | C160: 35 | F160: =SUMPRODUCT(--(ColorIndex(C4:C121)=35)*C4:C121) -> 0 | G160: =SUMPRODUCT(--(ColorIndex(E4:E121)=35)*E4:E121) -> 0
